Cogmind - Beta 10.1 @@@ ROGUE MODE // 2020.09.29 @ 23:26:42 Player: HOTSOUP Result: Destroyed by as-81462 with Assembled Heavy Rifle Performance ------------- Evolutions (0) 0 Regions Visited (2) 400 Robots Destroyed (18) 90 Value Destroyed (280) 280 Prototype IDs (0) 0 Alien Tech Used (0) 0 Bonus (0) 0 TOTAL SCORE: 770 Bonus ------- None Cogmind --------- Core Integrity 0/250 Matter 177/300 Energy 123/125 System Corruption 0% Temperature Cool (2) Movement Flying (37) Location -10/Mines Parts ------- > --- POWER (1) -------- Light Ion Engine > --- PROPULSION (2) --- Flight Unit Flight Unit > --- UTILITY (2) ------ Small Storage Unit Targeting Computer > --- WEAPON (2) ------- (None) > --- INVENTORY (6) ---- ECM Suite Light Cannon EMP Blaster EMP Blaster EMP Blaster Peak State ------------ > --- POWER ------------ Light Ion Engine > --- PROPULSION ------- Flight Unit Flight Unit > --- UTILITY ---------- Small Storage Unit Targeting Computer > --- WEAPON ----------- Light Cannon EMP Blaster > --- INVENTORY -------- ECM Suite EMP Blaster EMP Blaster [Rating: 8] Favorites ----------- Power Light Ion Engine Engine Light Ion Engine Propulsion Flight Unit Flight Unit Flight Unit Utility Small Storage Unit Device ECM Suite Storage Small Storage Unit Processor Targeting Computer Weapon EMP Blaster Energy Gun EM Pulse Gun Ballistic Gun Light Assault Rifle Ballistic Cannon Light Cannon Launcher EMP Blaster Build | -11 -10 -10 ------- Run | Scr Mat Min Slots Evolved . | . . . Power . | . . . Propulsion . | . . . Utility . | . . . Weapon . | . . . Parts Attached 30 | 1 20 9 Power 4 | . 3 1 Engine 4 | . 3 1 Core . | . . . Reactor . | . . . Propulsion 8 | . 6 2 Treads . | . . . Leg . | . . . Wheel . | . . . Hover . | . . . Flight 8 | . 6 2 Utility 5 | . 4 1 Device 3 | . 3 . Storage 1 | . 1 . Processor 1 | . . 1 Hackware . | . . . Protection . | . . . Artifact . | . . . Weapon 13 | 1 7 5 Energy Gun 3 | 1 2 . Energy Cannon . | . . . Ballistic Gun 1 | . . 1 Ballistic Cannon 4 | . 2 2 Launcher 5 | . 3 2 Special Weapon . | . . . Impact Weapon . | . . . Slashing Weapon . | . . . Piercing Weapon . | . . . Special Melee Weapon . | . . . Unidentified Prototypes . | . . . Parts Lost 6 | . 4 2 Power 1 | . 1 . Propulsion 4 | . 2 2 Utility . | . . . Weapon 1 | . 1 . Highest Loss Streak 2 | . 2 1 Average Slot Usage (%) 48 | . 47 51 Engine 3 | . 2 3 Flight 19 | . 21 16 Device 4 | . 6 . Storage 9 | . 8 14 Processor 2 | . . 10 Energy Gun 2 | . 3 . Ballistic Cannon 2 | . 2 3 Launcher 3 | . 3 3 Naked Turns . | . . . Heaviest Build 14 | 2 11 14 Greatest Support 8 | 3 8 8 Greatest Overweight (x) 3 | . 1 3 Average Overweight (x) . | . . . Largest Inventory Capacity 6 | 4 6 6 Average Capacity 5 | 4 5 6 Most Carried 6 | 1 6 5 Average Carried 3 | . 3 4 Final Capacity 6 | 4 6 6 Final Carried 5 | 1 5 5 Class Distribution -------------------- 100% | Mutant Dominant Class ---------------- Mutant | -10/Materials Mutant | -10/Mines Resources | -11 -10 -10 ----------- Run | Scr Mat Min Matter Collected 543 | 189 263 91 Remotely . | . . . Salvage Created 363 | . 284 79 Parts 36 | . 27 9 Haulers Intercepted . | . . . Recyclers Shooed . | . . . Parts Field Recycled . | . . . Retrieved Matter . | . . . Parts Self-Destructed . | . . . Prevented . | . . . Kills | -11 -10 -10 ------- Run | Scr Mat Min Combat Hostiles Destroyed 11 | . 7 4 Guns 2 | . 2 . Cannons 8 | . 4 4 AOE 1 | . 1 . Classes Destroyed 7 | . 7 . Worker 1 | . 1 . Builder 2 | . 2 . Recycler 1 | . 1 . Operator 1 | . 1 . Watcher 2 | . 2 . Swarmer 8 | . 6 2 Grunt 3 | . 1 2 Best Kill Streak 4 | . 4 2 Combat Bots Only 3 | . 3 2 Max Kills in Single Turn 1 | . 1 1 Gunslinging . | . . . Exploded 1 | . 1 . Melee . | . . . Uniques/NPCs Destroyed . | . . . Combat | -11 -10 -10 -------- Run | Scr Mat Min Damage Taken 654 | . 446 208 Core 250 | . 143 107 Absorbed by Shields . | . . . Core Remaining (%) 100 | 100 . . Volleys Fired 65 | . 50 15 Largest 2 | . 1 2 Hottest 68 | . 65 68 Shots Fired 67 | . 50 17 Gun 18 | . 18 . Cannon 35 | . 20 15 Launcher 14 | . 12 2 Special . | . . . Kinetic 35 | . 20 15 Thermal 3 | . 3 . Explosive . | . . . Electromagnetic 29 | . 27 2 Robot Hit Streak 5 | . 5 4 Robot Miss Streak 4 | . 4 1 Penetration Max . | . . . Secondary Targets . | . . . Shots Hit Robots 37 | . 26 11 Core Hits 21 | . 16 5 Critical Hits . | . . . Critical Kills . | . . . Critical Parts Destroyed . | . . . Melee Attacks . | . . . Impact . | . . . Slashing . | . . . Piercing . | . . . Sneak Attacks . | . . . Combat Hostiles . | . . . Follow-up Attacks . | . . . Damage Inflicted 898 | . 695 203 Guns 215 | . 215 . Cannons 410 | . 224 186 Explosions 273 | . 256 17 Melee . | . . . Ramming . | . . . Kinetic 410 | . 224 186 Thermal 115 | . 115 . Explosive . | . . . Electromagnetic 373 | . 356 17 Impact . | . . . Slashing . | . . . Piercing . | . . . Highest Corruption . | . . . Average Corruption . | . . . Corruption Purged . | . . . Overload Shots . | . . . Overflow Damage 6 | . . 6 Projectiles . | . . . Explosions 6 | . . 6 Melee . | . . . Knockbacks 8 | . 3 5 Impact . | . . . Kinetic 8 | . 3 5 Secondary . | . . . Self-Inflicted Damage 37 | . 37 . Shots 1 | . 1 . Rammed . | . . . Targets Rammed . | . . . Kicked . | . . . Crushed . | . . . Highest Temperature 48 | . 48 8 Average Temperature 7 | . 8 3 Received Heat Transfer 186 | . 123 63 Siege Activations . | . . . Robots Corrupted 2 | . 2 . Combat Hostiles . | . . . Parts Fried 3 | . 3 . Impact Corruptions . | . . . Robots Melted . | . . . Combat Hostiles . | . . . Parts Melted 1 | . 1 . Heat Transferred 261 | . 261 . Parts Sabotaged . | . . . Parts Stolen . | . . . Parts Stripped . | . . . Power Chain Reactions 2 | . 1 1 Missiles Intercepted . | . . . Alert | -11 -10 -10 ------- Run | Scr Mat Min Peak Influence 242 | . 242 90 Initial . | . . . Average 78 | . 89 54 Maximum Alert Level 1 | . 1 . Low Security (%) 89 | 100 84 100 Level 1 10 | . 15 . Level 2 . | . . . Level 3 . | . . . Level 4 . | . . . Level 5 . | . . . High Security . | . . . Max Security . | . . . Squads Dispatched 2 | . 2 . Investigation 1 | . 1 . Extermination . | . . . Reinforcement 1 | . 1 . Assault . | . . . Garrison . | . . . Intercept . | . . . Construction Impeded . | . . . Haulers Reinforced . | . . . Stealth | -11 -10 -10 --------- Run | Scr Mat Min Distress Signals 2 | . 2 . Communications Jammed . | . . . Distress Signals . | . . . Times Spotted 35 | . 24 11 Peak Tracking Total 5 | . 5 3 Tactical Retreats 7 | . 5 2 Traps | -11 -10 -10 ------- Run | Scr Mat Min Traps Triggered 1 | . 1 . Indirectly . | . . . Trap Hack Attempts . | . . . Triggered . | . . . Disarmed . | . . . Reprogrammed . | . . . Reused . | . . . Traps Extracted . | . . . Installed . | . . . Triggered 1 | . 1 . Machines | -11 -10 -10 ---------- Run | Scr Mat Min Machines Disabled 2 | . 2 . Max in Single Turn 1 | . 1 . Machines Sabotaged . | . . . Garrisons Compromised . | . . . Overloaded Fab Kills . | . . . Fab Network Shutdowns . | . . . Hacking | -11 -10 -10 --------- Run | Scr Mat Min Machines Accessed 7 | . 6 1 Terminals 6 | . 5 1 Fabricators . | . . . Repair Stations 1 | . 1 . Recycling Units . | . . . Scanalyzers . | . . . Garrison Access . | . . . Total Hacks 31 | . 26 5 Successful 16 | . 14 2 Failed 14 | . 11 3 Catastrophic . | . . . Database Lockouts 1 | . 1 . Manual 26 | . 22 4 Terminals 30 | . 25 5 Fabricators . | . . . Repair Stations 1 | . 1 . Recycling Units . | . . . Scanalyzers . | . . . Garrison Access . | . . . Terminal Hacks 8 | . 6 2 Part Schematic 1 | . 1 . Branch Access Points 1 | . 1 . Emergency Access Points 1 | . 1 . Alert Level 1 | . 1 . Locate Traps 1 | . 1 . Dispatch Records 2 | . . 2 Recall Investigation 1 | . 1 . Fabricator Hacks . | . . . Repair Station Hacks 1 | . 1 . Scan Component 1 | . 1 . Recycling Unit Hacks . | . . . Scanalyzer . | . . . Garrison Access Hacks . | . . . Unauthorized Hacks 7 | . 7 . Terminals 7 | . 7 . Track 1 | . 1 . Assimilate 2 | . 2 . Botnet 4 | . 4 . Fabricators . | . . . Repair Stations . | . . . Recycling Units . | . . . Scanalyzers . | . . . Garrison Access . | . . . Data Cores Recovered . | . . . Used . | . . . Hacking Detections 4 | . 3 1 Full Trace Events 3 | . 2 1 Feedback Events . | . . . Feedback Blocked . | . . . Robot Schematics Acquired . | . . . Robots Built . | . . . Matter . | . . . Time . | . . . Total Robot Build Rating . | . . . Part Schematics Acquired 1 | . 1 . Parts Built . | . . . Matter . | . . . Time . | . . . Total Part Build Rating . | . . . Parts Repaired . | . . . Time . | . . . Parts Recycled . | . . . Recycled Matter . | . . . Retrieved Matter . | . . . Retrieved Components . | . . . Parts Scanalyzed . | . . . Part Schematics Acquired . | . . . Parts Damaged . | . . . Bothacking | -11 -10 -10 ------------ Run | Scr Mat Min Used RIF Installer . | . . . Robots Hacked . | . . . Non-combat . | . . . Combat . | . . . Robot Hacks Applied . | . . . Relay Couplers Released . | . . . Robots Rewired . | . . . Allies Hacked . | . . . Hacks Repelled . | . . . Allies | -11 -10 -10 -------- Run | Scr Mat Min Total Allies 1 | . 1 . Largest Group 1 | . 1 1 Highest-Rated Group 10 | . 10 10 Highest-Rated Ally 10 | . 10 10 Total Orders 2 | . . 2 STAY 1 | . . 1 FOLLOW 1 | . . 1 Ally Attacks . | . . . Total Damage . | . . . Kills . | . . . Allies Corrupted . | . . . Allies Melted . | . . . Intel | -11 -10 -10 ------- Run | Scr Mat Min Robot Analysis Total . | . . . Derelict Logs Recovered 1 | . . 1 Drone Launches . | . . . Drone Recoveries . | . . . Exploration | -11 -10 -10 ------------- Run | Scr Mat Min Turns Passed 1252 | 24 886 342 Spaces Moved 1475 | 44 903 528 Core 158 | 44 101 13 Treads . | . . . Legs . | . . . Wheels . | . . . Hover . | . . . Flight 1317 | . 802 515 Fastest Speed 37 | 50 37 37 Average Speed 45 | 50 43 46 Slowest Speed 200 | 50 120 200 Overloaded Moves . | . . . Propulsion Burnouts . | . . . Robots Hopped 19 | . 13 6 Cave-ins Triggered . | . . . Exploration Rate (%) 47 | 3 78 62 Regions Visited 2 Branch Regions 1 Pre-discovered Areas . | . . . Known Exits Taken 1 | . 1 . Unknown Exits Taken 1 | 1 . . Scrap Searched 1 | . . 1 Spaces Dug . | . . . Terrain Destroyed 4 | . 3 1 Melee . | . . . Projectile . | . . . AOE 4 | . 3 1 Terrain Rammed . | . . . Walls Destroyed . | . . . Machines Disabled . | . . . Actions | -11 -10 -10 --------- Run | Scr Mat Min Total 1976 | 45 1331 600 Wait 400 | . 351 49 Move 1436 | 43 877 516 Hop 18 | . 12 6 Pick Up 7 | 1 6 . Fast Attach 16 | 1 10 5 Attach 13 | . 9 4 Detach 13 | . 9 4 Swap 1 | . 1 . Drop 7 | . 6 1 Fire 65 | . 50 15 Melee . | . . . Ram . | . . . Kick . | . . . Crush . | . . . Escape Stasis . | . . . Rewire . | . . . Trap . | . . . Miscellaneous . | . . . Route ------- -11/Scrapyard -10/Materials (discovered 3 exits: [*Mat] / *Min x2) -10/Mines History --------- Turn | Location | Event 9 | -11/Scrapyard | Discovered new exit (range 15) 25 | -11/Scrapyard | Entered Materials 166 | -10/Materials | Discovered new exit (range 16) 324 | -10/Materials | Build established: Mutant 641 | -10/Materials | Core integrity fell below 50% 689 | -10/Materials | Discovered new exit (range 16) 703 | -10/Materials | Discovered new exit (range 16) 707 | -10/Materials | Identified exit to Mines 864 | -10/Materials | Central database locked down 911 | -10/Materials | Entered Mines 911 | -10/Mines | Accompanied by 1 ally 1107 | -10/Mines | Assembled infested the area 1112 | -10/Mines | Assisted by a Guerilla fighting off Assembled 1149 | -10/Mines | Core integrity fell below 20% 1253 | -10/Mines | Destroyed by as-81462 with Assembled Heavy Rifle Last Messages --------------- 01002_ Acquired Lgt. Assault Rifle. 01004_ Dropped Lgt. Assault Rifle. 01005_ Acquired Targeting Computer. 01062_ K-01 Serf collects debris. 01084_ Acquired derelict log, extracted data. Data stored: Mines entrances (x2). 01107_ ALERT: Infestation in the mines, dispatching Demolisher response squad. 01140_ Flight Unit destroyed. 01147_ K-01 Serf collects debris. 01150_ K-01 Serf destroyed. 01154_ K-01 Serf collects debris. 01155_ S-10 Pest knocked back. 01157_ S-10 Pest destroyed. 01165_ Acquired Flight Unit. 01172_ Acquired 11 matter. 01174_ Acquired Lgt. Ion Engine. 01176_ Acquired 8 matter. 01212_ K-01 Serf collects debris. 01226_ K-01 Serf destroyed. 01252_ Acquired 26 matter. Map ----- +----------------------------------------------------+ | ????????????# #####???????????# #????????# #### # | | ????????????# #???????????# ###??????? #?## | | ????????????##### #??????????## ######## ### | | ????????????????# ####???##### = ## | | ????????????????# #?### = ##### #### | | ????????????????#### ### #???# #??# | | ???????????######### ## #???# #?## | | ???????????# ## #### % #???# ### | | ???????????# """" #??#" = #???# ## | | ???????????# """" ####??## ##???# ### | | ???????????# """" #????## ##????#### ##?? | | ???????????# #???## ##????????####??? | | ???????????########??## ##???????????????? | | ?????????????????????# ##????????????????? | | ?????????????????????# ##?????????????????? | | ?????????????????????## ##??????????????????? | | ??????????????????????#### #???????????????????? | | ?????????????????######### #???###?????????????? | | ????????????????## ##![#??? ?????????????? | | ???????????????## ### ## #??? ""?????????????? | | ????????####??## ##?# ## !#??? ""?????????????? | | ???????## #### #??# ## #??? ""?????????????? | | ???????# ## ##??#*## #??? ?????????????? | | ???????# ##???# ## #???# #?????????????? | | ??????## ##???##!## =#???# #?????????????? | | ?????## ##????# @ !=##### ########??????? | | ?????# ##?????# ###=%aa %=*a ""?? | | ?????# ##??????# #?# =########## ## ""?? | | ?????# ## ##???????# #?# #???????????????????? | | ?????# ## ########## #?# #????????????#??????? | | ?????## ## #?# ??????????? #??????? | | ??????## ##############?#####????????? ??????? | | ???????## ##????????????????????????? """ ?????? | | ????????# #????????????????????????# """ #???? | | ????????# ##??????##########??????# """ #???? | | ????????# ##?????# #????## #???? | | ???????## #?????# ###### #??## #???? | | ??????## #?????# #????# #?## #????? | | ??????# ##????## #????# ### #????? | | ?????## ###????## ##???# #?????? | | ?????# ##??????# #???###### #??????? | | ?????# ##??????# #????????## ##??????? | | ?????# ##?????# ##????????? ##???????? | | ?????### #????## ###???????# #??# #???? | | ???????## #????# ##???????# ##?# ##??? | | ???????## ##???# #????????###?# ??? | | ????####*% ##??## #??????????## #??? | | ???## = = ######### ##?????????# #???? | | ???# % = #???# ##??????#### ????? | | ??## ###* [ ## #???# #???????# ??????? | +----------------------------------------------------+ Best States ------------- Heat Dissipation 25 Energy Generation 10 Energy Capacity 125 Matter Stores 279 Matter Capacity 300 Sight Range 16 Robot Scan Range 10 Terrain Scan Density 10 ECM Strength 1 Evasion (%) 62 Targeting Accuracy 5 Item Schematics ----------------- Flight Unit | -10/Materials | Hacked Robot Schematics ------------------ None Fabricated ------------ Nothing Alien Tech Used ----------------- None Achievements -------------- None Challenges ------------ None Game ------ Seed PointBombardmentCloak Manual? 0 Play Time 00:24:51 Cumulative 76.5 hours Start 2020.09.29 @ 23:06:00 End 2020.09.29 @ 23:26:42 Sessions 1 Manual Loads 0 Difficulty Rogue Special Mode None Game No. 107 Rogue 83 Adventurer 22 Explorer 2 Win Type - Total 1 Types 1/0/0/0/0/0/0/0/0 Lore% 43 Gallery% 47 Achievement% 39 Wizard Run 0 Options --------- ASCII 0 Keyboard 0 Movement Numpad Keybinds 0 Fullscreen 1 Font 14/SmallcapsGlow Map View 84x54 Tactical HUD 1 Map Filters NONE Filters NONE Steam 1 RUN: f3660948-4e1c-407e-be8b-82942162b37e